Cogmind - Beta 15 @@@ ROGUE MODE // 2025.10.12 @ 17:48:46 Player: Rockstar Result: Destroyed by YI-UF0 with YI-UF0's Doublenader Performance ------------- Evolutions (0) 0 Regions Visited (2) 400 Robots Destroyed (13) 65 Value Destroyed (237) 237 Prototype IDs (0) 0 Alien Tech Used (0) 0 Bonus (0) 0 TOTAL SCORE: 702 Bonus ------- None Cogmind --------- Core Integrity 0/250 Matter 300/300 Energy 100/100 System Corruption 0% Temperature Cool (0) Movement Core (200) Ox3 Location -10/Mines Parts ------- > --- POWER (1) -------- (None) > --- PROPULSION (2) --- (None) > --- UTILITY (2) ------ Medium Storage Unit > --- WEAPON (2) ------- (None) > --- INVENTORY (10) --- Light Ion Engine Light Treads Light Treads Aluminum Leg Heat Sink Small Storage Unit Sensor Array Mining Laser Peak State ------------ > --- POWER ------------ Ion Engine > --- PROPULSION ------- Aluminum Leg Aluminum Leg > --- UTILITY ---------- Small Storage Unit Visual Processing Unit > --- WEAPON ----------- Particle Gun Assault Rifle > --- INVENTORY -------- Light Ion Engine Light Treads Light Treads Particle Gun Assault Rifle Rocket Launcher Rocket Launcher Mining Laser [Rating: 10] Favorites ----------- Power Ion Engine Engine Ion Engine Propulsion Aluminum Leg Treads Light Treads Leg Aluminum Leg Utility Medium Storage Unit Device Improved Heat Sink Storage Medium Storage Unit Processor Visual Processing Unit Protection Light Armor Plating Weapon Assault Rifle Energy Gun Particle Gun Ballistic Gun Assault Rifle Launcher Rocket Launcher Build | -11 -10 -10 ------- Run | Yrd Mat Min Slots Evolved . | . . . Power . | . . . Propulsion . | . . . Utility . | . . . Weapon . | . . . Parts Attached 19 | 6 5 8 Power 2 | 1 . 1 Engine 2 | 1 . 1 Core . | . . . Reactor . | . . . Propulsion 5 | 2 . 3 Treads 2 | . . 2 Leg 3 | 2 . 1 Wheel . | . . . Hover . | . . . Flight . | . . . Utility 6 | 1 3 2 Device 2 | . . 2 Storage 2 | 1 1 . Processor 1 | . 1 . Hackware . | . . . Protection 1 | . 1 . Artifact . | . . . Weapon 6 | 2 2 2 Energy Gun 2 | . 2 . Energy Cannon . | . . . Ballistic Gun 2 | 2 . . Ballistic Cannon . | . . . Launcher 2 | . . 2 Special Weapon . | . . . Impact Weapon . | . . . Slashing Weapon . | . . . Piercing Weapon . | . . . Special Melee Weapon . | . . . Unidentified Prototypes . | . . . Parts Lost 11 | . . 11 Power 2 | . . 2 Propulsion 3 | . . 3 Utility 2 | . . 2 Weapon 4 | . . 4 Highest Loss Streak 6 | . . 6 To Critical Strikes . | . . . Average Backups 7 | 1 7 8 Power 1 | . 1 1 Propulsion 1 | . 2 2 Utility 1 | . . 2 Weapon 3 | . 3 2 Tool/Special . | . . . Unused Backups 7 | . 3 4 Power 1 | . . 1 Propulsion 1 | . . 1 Utility 1 | . . 1 Weapon 4 | . 3 1 Tool/Special . | . . . Average Slot Usage (%) 91 | . 95 82 Engine 12 | . 14 10 Treads 3 | . . 10 Leg 23 | . 28 14 Device 2 | . . 6 Storage 14 | . 14 14 Processor 3 | . 5 . Protection 5 | . 5 5 Energy Gun 11 | . 10 12 Ballistic Gun 11 | . 17 . Launcher 2 | . . 6 Peak Build Rating 10 | 6 10 10 Average Rating 8 | 4 8 8 On Entrance 5 | . 6 10 Naked Turns . | . . . Heaviest Build 24 | 14 24 24 Greatest Support 40 | 20 20 40 Greatest Overweight (x) 6 | . 1 6 Average Overweight (x) . | . . . Largest Inventory Capacity 10 | 8 10 10 Average Capacity 8 | 7 8 10 Most Carried 9 | 4 9 9 Average Carried 7 | 1 7 8 Final Capacity 10 | 8 10 10 Final Carried 9 | 4 9 8 Class Distribution -------------------- 100% | Mutant Dominant Class ---------------- Mutant | -10/Materials Mutant | -10/Mines Resources | -11 -10 -10 ----------- Run | Yrd Mat Min Matter Collected 634 | 243 310 81 Remotely . | . . . Salvage Created 360 | . 311 49 Parts 21 | . 19 2 Haulers Intercepted . | . . . Recyclers Shooed 1 | . 1 . Parts Field Recycled . | . . . Retrieved Matter . | . . . Parts Self-Destructed . | . . . Prevented . | . . . Kills | -11 -10 -10 ------- Run | Yrd Mat Min Combat Hostiles Destroyed 10 | . 8 2 Guns 9 | . 8 1 AOE 1 | . . 1 Classes Destroyed 4 | . 4 . Recycler 2 | . 2 . Watcher 1 | . 1 . Swarmer 6 | . 6 . Grunt 4 | . 2 2 Best Kill Streak 7 | . 7 1 Combat Bots Only 6 | . 6 1 Max Kills in Single Turn 1 | . 1 1 Gunslinging . | . . . Exploded 1 | . . 1 Melee . | . . . Uniques/NPCs Destroyed . | . . . Combat | -11 -10 -10 -------- Run | Yrd Mat Min Hostile Shots Fired 125 | . 51 74 Missed 29 | . 10 19 Hits 96 | . 41 55 Projectile 96 | . 41 55 AOE 17 | . . 17 Critical Strikes 2 | . 2 . Damage Taken 1433 | . 385 1048 Core 282 | . 88 194 Absorbed by Shields . | . . . Core Remaining (%) 100 | 100 . . Volleys Fired 63 | . 44 19 Largest 2 | . 2 2 Hottest 130 | . 130 130 Shots Fired 115 | . 88 27 Gun 114 | . 88 26 Cannon . | . . . Launcher 1 | . . 1 Special . | . . . Kinetic 82 | . 82 . Thermal 32 | . 6 26 Explosive 1 | . . 1 Electromagnetic . | . . . Robot Hit Streak 8 | . 8 6 Robot Miss Streak 4 | . 4 3 Penetration Max . | . . . Secondary Targets 1 | . 1 . Max Gunslinging Chain 1 | . 1 . Shots Hit Robots 69 | . 51 18 Core Hits 21 | . 15 6 Critical Kills . | . . . Critical Parts Destroyed . | . . . Critical Strikes 2 | . 1 1 Burn 2 | . 1 1 Melee Attacks . | . . . Impact . | . . . Slashing . | . . . Piercing . | . . . Sneak Attacks . | . . . Combat Hostiles . | . . . Follow-up Attacks . | . . . Damage Inflicted 998 | . 663 335 Guns 935 | . 657 278 Cannons . | . . . Explosions 50 | . . 50 Melee . | . . . Ramming 13 | . 6 7 Kinetic 588 | . 588 . Thermal 347 | . 69 278 Explosive 50 | . . 50 Electromagnetic . | . . . Impact . | . . . Slashing . | . . . Piercing . | . . . Highest Corruption . | . . . Average Corruption . | . . . Corruption Purged . | . . . Corruption Blocked . | . . . Overload Shots . | . . . Overflow Damage . | . . . Projectiles . | . . . Explosions . | . . . Melee . | . . . Knockbacks . | . . . Impact . | . . . Kinetic . | . . . Secondary . | . . . Self-Inflicted Damage . | . . . Shots . | . . . Rammed 5 | . . 5 Targets Rammed 8 | . 3 5 Kicked 3 | . 3 . Crushed . | . . . Highest Temperature 297 | . 252 297 Average Temperature 143 | . 130 147 Received Heat Transfer 396 | . 114 282 Effects 1 | . . 1 Interference 1 | . . 1 Siege Activations . | . . . Martial Activations . | . . . Shielding Activations . | . . . Robots Disrupted . | . . . Combat Hostiles . | . . . Robots Corrupted . | . . . Combat Hostiles . | . . . Parts Fried . | . . . Impact Corruptions . | . . . Robots Melted . | . . . Combat Hostiles . | . . . Parts Melted 2 | . . 2 Heat Transferred 962 | . 222 740 Parts Sabotaged . | . . . Parts Stolen . | . . . Parts Stripped . | . . . Power Chain Reactions . | . . . Alert | -11 -10 -10 ------- Run | Yrd Mat Min Maximum Alert Level . | . . . Low Security (%) 100 | 100 100 100 Level 1 . | . . . Level 2 . | . . . Level 3 . | . . . Level 4 . | . . . Level 5 . | . . . High Security . | . . . Max Security . | . . . Peak Influence 127 | . 127 40 Initial 1 | . . 1 Average 31 | . 43 9 Influence Increases 301 | . 226 75 Destroy 0b10 Robot/C 200 | . 160 40 Destroy 0b10 Robot/NC 15 | . 15 . Destroy Leader 52 | . 42 10 Successful Hack 9 | . 9 . Destroy Structure 10 | . . 10 Lose Combat Pursuer 15 | . . 15 Influence Decreases 301 | . 220 81 Entered New Map 5 | . . 5 Time Decay 290 | . 220 70 Lost Part 6 | . . 6 Squads Dispatched 2 | . 2 . Investigation . | . . . Extermination . | . . . Reinforcement 2 | . 2 . Assault . | . . . Garrison . | . . . Intercept . | . . . Searches Triggered . | . . . Construction Impeded . | . . . Haulers Reinforced . | . . . Active Scanning Responses . | . . . Cargo Convoy Interrupts . | . . . Stealth | -11 -10 -10 --------- Run | Yrd Mat Min Distress Signals 3 | . 3 . Communications Jammed . | . . . Distress Signals . | . . . Times Spotted 23 | . 16 7 Peak Tracking Total 3 | . 3 2 Tactical Retreats 2 | . . 2 Traps | -11 -10 -10 ------- Run | Yrd Mat Min Traps Triggered . | . . . Indirectly . | . . . Trap Hack Attempts . | . . . Triggered . | . . . Disarmed . | . . . Reprogrammed 1 | . 1 . Reused . | . . . Traps Extracted . | . . . Installed . | . . . Triggered . | . . . Machines | -11 -10 -10 ---------- Run | Yrd Mat Min Machines Disabled . | . . . Max in Single Turn . | . . . Machines Repaired . | . . . Machines Dismantled . | . . . Machines Sabotaged . | . . . Overloaded Fab Kills . | . . . Hacking | -11 -10 -10 --------- Run | Yrd Mat Min Machines Accessed 5 | . 4 1 Terminals 5 | . 4 1 Fabricators . | . . . Repair Stations . | . . . Recycling Units . | . . . Scanalyzers . | . . . Garrison Access . | . . . Total Hacks 13 | . 11 2 Successful 5 | . 5 . Failed 8 | . 6 2 Catastrophic . | . . . Database Lockouts . | . . . Manual 1 | . 1 . Terminals 13 | . 11 2 Fabricators . | . . . Repair Stations . | . . . Recycling Units . | . . . Scanalyzers . | . . . Garrison Access . | . . . Terminal Hacks 5 | . 5 . Branch Access Points 1 | . 1 . Reprogram Traps 1 | . 1 . Dispatch Records 1 | . 1 . Investigation Status 1 | . 1 . Hauler Manifests 1 | . 1 . Fabricator Hacks . | . . . Repair Station Hacks . | . . . Recycling Unit Hacks . | . . . Scanalyzer . | . . . Garrison Access Hacks . | . . . Unauthorized Hacks . | . . . Terminals . | . . . Fabricators . | . . . Repair Stations . | . . . Recycling Units . | . . . Scanalyzers . | . . . Garrison Access . | . . . Data Cores Recovered . | . . . Used . | . . . Hacking Detections 4 | . 3 1 Full Trace Events . | . . . Feedback Events . | . . . Feedback Blocked . | . . . Robot Schematics Acquired . | . . . Robots Built . | . . . Authchips . | . . . Time . | . . . Total Robot Build Rating . | . . . Part Schematics Acquired . | . . . Parts Built . | . . . Authchips . | . . . Time . | . . . Total Part Build Rating . | . . . Parts Repaired . | . . . Time . | . . . Parts Recycled . | . . . Recycled Matter . | . . . Retrieved Matter . | . . . Retrieved Components . | . . . Parts Scanalyzed . | . . . Part Schematics Acquired . | . . . Parts Damaged . | . . . Bothacking | -11 -10 -10 ------------ Run | Yrd Mat Min Used RIF Installer . | . . . Robots Hacked . | . . . Non-combat . | . . . Combat . | . . . Robot Hacks Applied . | . . . Relay Couplers Released . | . . . Fabnet Peak Effective % . | . . . Robots Rewired . | . . . Allies Hacked . | . . . Hacks Repelled . | . . . Allies | -11 -10 -10 -------- Run | Yrd Mat Min Total Allies . | . . . Largest Group . | . . . Highest-Rated Group . | . . . Highest-Rated Ally . | . . . Total Orders . | . . . Ally Attacks . | . . . Total Damage . | . . . Kills . | . . . Allies Corrupted . | . . . Allies Melted . | . . . Intel | -11 -10 -10 ------- Run | Yrd Mat Min Active Infowar (turns) 239 | . 239 . Optics 239 | . 239 . Robot Analysis Total . | . . . Derelict Logs Recovered 1 | . . 1 Drone Launches . | . . . Drone Recoveries . | . . . Exploration | -11 -10 -10 ------------- Run | Yrd Mat Min Turns Passed 1010 | 58 651 301 Spaces Moved 528 | 40 323 165 Core 15 | 4 . 11 Treads 57 | . . 57 Legs 456 | 36 323 97 Wheels . | . . . Hover . | . . . Flight . | . . . Fastest Speed 50 | 50 120 120 Average Speed 138 | 113 140 140 Slowest Speed 350 | 120 190 350 Overloaded Moves . | . . . Propulsion Burnouts . | . . . Robots Hopped . | . . . Potential Cave-ins . | . . . Cave-ins Triggered . | . . . Exploration Rate (%) 36 | 5 55 48 Regions Visited 2 Branch Regions 1 Pre-discovered Areas . | . . . Known Exits Taken 1 | . 1 . Unknown Exits Taken 1 | 1 . . Scrap Searched . | . . . Spaces Dug . | . . . Terrain Destroyed 10 | . . 10 Melee . | . . . Projectile . | . . . AOE 10 | . . 10 Terrain Rammed . | . . . Walls Destroyed . | . . . Machines Disabled . | . . . Actions | -11 -10 -10 --------- Run | Yrd Mat Min Total 683 | 50 431 202 Wait 44 | . 42 2 Move 526 | 39 322 165 Hop . | . . . Pick Up 16 | 5 9 2 Fast Attach 8 | 5 2 1 Attach 5 | 1 . 4 Detach . | . . . Swap 7 | . 3 4 Drop 6 | . 6 . Fire 63 | . 44 19 Melee . | . . . Ram . | . . . Kick 3 | . 3 . Crush 5 | . . 5 Escape Stasis . | . . . Rewire . | . . . Trap . | . . . Miscellaneous . | . . . Route ------- -11/Scrapyard -10/Materials (discovered 2 exits: [*Mat] / *Min) -10/Mines History --------- Turn | Location | Event 4 | -11/Scrapyard | Discovered new exit (range 15) 59 | -11/Scrapyard | Entered Materials 248 | -10/Materials | Identified exit to Mines 313 | -10/Materials | Build established: Mutant 446 | -10/Materials | Discovered new exit (range 18) 710 | -10/Materials | Entered Mines 822 | -10/Mines | Learned Materials stockpile data 838 | -10/Mines | Core integrity fell below 50% 863 | -10/Mines | Met a Derelict bent on vengeance 880 | -10/Mines | Lost 3 parts (1u2w) 990 | -10/Mines | Core integrity fell below 20% 1011 | -10/Mines | Destroyed by YI-UF0 with YI-UF0's Doublenader Last Messages --------------- 00987_ Aluminum Leg destroyed. 00989_ The unstable cave ceiling collapses. 00989_ U-05 Engineer builds a Wall. 00989_ Rocket Launcher destroyed. 00991_ Imp. Heat Sink destroyed. 00991_ Rocket Launcher destroyed. 00993_ K-01 Serf collects debris. 00993_ U-05 Engineer builds a Wall. 00994_ The unstable cave ceiling collapses. 00998_ U-05 Engineer builds a Wall. 01001_ The unstable cave ceiling collapses. 01004_ K-01 Serf destroyed. 01006_ The unstable cave ceiling collapses. 01008_ YI-UF0 mumbles something. 01008_ The unstable cave ceiling collapses. 01008_ U-05 Engineer destroyed. 01008_ YI-UF0: "WHOMP!" 01010_ The unstable cave ceiling collapses. 01010_ Sml. Storage Unit crushed. 01010_ The unstable cave ceiling collapses. Map ----- +----------------------------------------------------+ | #????????????????????????????????????? | | #?????????????????????????????????????? | | #??????????????????????????????????????? | | #???????????????????????????????????????? | | #????????????????????????????????????????? | | #?????????????????????????????????????????? | | ### #?????????????????????????????????????????? | | # ##?##?????????????????????????????????????? | | ## ###???????????????????????????????????? | | ##??????????????????????????????????? | | ##?????????????????????????????????? | | # ???????????????????????????? | | # # ## ??????????????????????????? | | ## ### #?????????????????????????? | | ## # # ! ???????????????????????????? | | ### ### % *%[ ??????????????????????????? | | ##?# #??# # # ???????????????????????????? | | ???# #???## = #######????????????????????? | | ???# #???# # !%= #????????????????????? | | ?### #????# | % ! #????????????????????? | | ?# #????# % ## #????????????????????? | | ## #????# ==# # #????????????????????? | | # ##??## ## ##???????????????????? | | ##### # # # ##??????????????????? | | ## # % #??????????????????? | | # g @ #??????????????????? | | # #??????????????????? | | ## ## ## # ##??????????????????? | | #### ### #### ????????????????? | | #??#####?## ###??## #?????????????? | | #####?????## # #####??????# #####k #?????????????? | | # ##?????# #????????????? #????? #?????????????? | | ##????# #????????????? #????????????????????? | | ###??# #????????????? #????????????????????? | | ##?# #??????????????g????????????????????? | | ### #??????????????"????????????????????? | | ## #??????????????"????????????????????? | | #### #### #???????????????????????????????????? | | #??## ##??# #???????????????????????????????????? | | #???####???# #???????????????????????????????????? | | #??????????# #???????????????????????????????????? | | #????????### ##??????????????????????????????????? | | ?????#### ##?????????????????????????????????? | | ?????# #?????????????????????????????????? | | ?????# ##????????????????????????????????? | | ?????###### #????????????????????????????????? | | ?????????# #????????????????????????????????? | | ?????##???# ##????????????????????????????????? | | ######T#### ##?????????????????????????????????? | | ?# ## #??????????????????????????????????? | +----------------------------------------------------+ Best States ------------- Heat Dissipation 39 Energy Generation 10 Energy Capacity 250 Matter Stores 300 Matter Capacity 300 Sight Range 18 Terrain Scan Density 10 Armor Coverage 150 Evasion (%) 55 Recoil Reduction 2 Item Schematics ----------------- None Robot Schematics ------------------ None Fabricated ------------ Nothing Repaired ---------- Nothing Alien Tech Used ----------------- None Achievements -------------- None Challenges ------------ None Game ------ Seed CoreLegDeflector Manual? 0 Play Time 00:15:32 Cumulative 156.1 hours Start 2025.10.12 @ 17:33:31 End 2025.10.12 @ 17:48:46 Sessions 1 Manual Loads 0 Difficulty Rogue Special Mode None Game No. 146 Rogue 143 Adventurer 1 Explorer 2 Win Type - Total 1 Types 1/0/0/0/0/0/0/0/0/0 Lore% 53 Gallery% 60 Achievement% 48 Wizard Run 0 Options --------- Layout 0 ASCII 0 Keyboard 0 Movement Mouse Keybinds 0 Fullscreen 2 Font 24/Smallcaps Map View 76x50 Zoom Use 0% Tactical HUD 1 Map Filters NONE Filters NONE Steam 1 RUN: 506aec67-bd99-45a2-96c2-986791c857cf